[Event "December 5 Early 2023"]
[Site "https://www.chess.com"]
[Date "2023.12.05"]
[Round "9"]
[White "Dyachuk, Artem"]
[Black "Tymrakiewicz, Rafal"]
[Result "1-0"]
[Board "73"]
[TimeControl "180+1"]
[WhiteFideId "34107924"]
[BlackFideId "1108832"]
[WhiteElo "2587"]
[BlackElo "2427"]
[WhiteTeam "UKR"]
[BlackTeam "POL"]
[WhiteClock "0:00:20"]
[BlackClock "0:00:00"]

1. e4 {[%clk 0:03:00]}  Nf6 {[%clk 0:02:54]} 2. e5 {[%clk 0:03:00]}  Nd5 {[%clk 0:02:54]} 3. d4 {[%clk 0:03:01]}  d6 {[%clk 0:02:54]} 4. c4 {[%clk 0:03:00]}  Nb6 {[%clk 0:02:54]} 5. f4 {[%clk 0:02:59]}  dxe5 {[%clk 0:02:54]} 6. fxe5 {[%clk 0:02:58]}  c5 {[%clk 0:02:55]} 7. d5 {[%clk 0:02:54]}  e6 {[%clk 0:02:55]} 8. Nc3 {[%clk 0:02:50]}  exd5 {[%clk 0:02:55]} 9. cxd5 {[%clk 0:02:51]}  c4 {[%clk 0:02:56]} 10. Be2 {[%clk 0:02:24]}  Bb4 {[%clk 0:02:28]} 11. Bf3 {[%clk 0:02:18]}  O-O {[%clk 0:02:20]} 12. Ne2 {[%clk 0:02:16]}  Re8 {[%clk 0:02:19]} 13. Bf4 {[%clk 0:02:07]}  g5 {[%clk 0:02:11]} 14. Bg3 {[%clk 0:02:06]}  g4 {[%clk 0:02:11]} 15. Be4 {[%clk 0:02:06]}  f5 {[%clk 0:02:11]} 16. Bc2 {[%clk 0:01:54]}  Nxd5 {[%clk 0:02:04]} 17. Qc1 {[%clk 0:01:55]}  Bc5 {[%clk 0:01:40]} 18. Nxd5 {[%clk 0:01:40]}  Qxd5 {[%clk 0:01:40]} 19. Qg5+ {[%clk 0:01:41]}  Kh8 {[%clk 0:01:26]} 20. Qf6+ {[%clk 0:01:39]}  Kg8 {[%clk 0:01:25]} 21. Rd1 {[%clk 0:01:27]}  Qe6 {[%clk 0:01:11]} 22. Qg5+ {[%clk 0:01:25]}  Qg6 {[%clk 0:01:11]} 23. Qd2 {[%clk 0:01:13]}  Qf7 {[%clk 0:00:46]} 24. Rf1 {[%clk 0:00:51]}  Nc6 {[%clk 0:00:42]} 25. Bxf5 {[%clk 0:00:46]}  Bxf5 {[%clk 0:00:40]} 26. Qg5+ {[%clk 0:00:45]}  Qg6 {[%clk 0:00:35]} 27. Rxf5 {[%clk 0:00:44]}  Bb4+ {[%clk 0:00:14]} 28. Kf1 {[%clk 0:00:42]}  Rf8 {[%clk 0:00:13]} 29. Qxg6+ {[%clk 0:00:31]}  hxg6 {[%clk 0:00:13]} 30. Rf6 {[%clk 0:00:30]}  Rxf6+ {[%clk 0:00:11]} 31. exf6 {[%clk 0:00:31]}  Kf7 {[%clk 0:00:09]} 32. Bh4 {[%clk 0:00:30]}  Rd8 {[%clk 0:00:09]} 33. Rc1 {[%clk 0:00:26]}  b5 {[%clk 0:00:08]} 34. Ng3 {[%clk 0:00:25]}  Ne5 {[%clk 0:00:07]} 35. Ne4 {[%clk 0:00:24]}  Rd4 {[%clk 0:00:07]} 36. Ng5+ {[%clk 0:00:23]}  Kf8 {[%clk 0:00:02]} 37. Ne6+ {[%clk 0:00:23]}  Kf7 {[%clk 0:00:02]} 38. Nxd4 {[%clk 0:00:24]}  Bc5 {[%clk 0:00:02]} 39. Bf2 {[%clk 0:00:21]}  Nd3 {[%clk 0:00:01]} 40. Rd1 {[%clk 0:00:21]}  Nxb2 {[%clk 0:00:01]} 41. Rd2 {[%clk 0:00:20]}  c3 {[%clk 0:00:01]} 42. Rc2 {[%clk 0:00:19]}  b4 {[%clk 0:00:02]} 43. Nc6 {[%clk 0:00:19]}  Bxf2 {[%clk 0:00:00]} 44. Kxf2 {[%clk 0:00:20]} 1-0

[Event "December 5 Early 2023"]
[Site "https://www.chess.com"]
[Date "2023.12.05"]
[Round "9"]
[White "Kiremitciyan, Ari"]
[Black "Truskavetsky, Alexandr"]
[Result "0-1"]
[Board "74"]
[TimeControl "180+1"]
[WhiteFideId "6373445"]
[BlackFideId "14108577"]
[WhiteElo "2425"]
[BlackElo "2577"]
[WhiteTeam "TUR"]
[BlackTeam "RUS"]
[WhiteClock "0:00:00"]
[BlackClock "0:00:10"]

1. e4 {[%clk 0:03:00]}  c5 {[%clk 0:02:58]} 2. Nf3 {[%clk 0:03:01]}  Nc6 {[%clk 0:02:58]} 3. Bb5 {[%clk 0:03:00]}  g6 {[%clk 0:02:58]} 4. Bxc6 {[%clk 0:03:00]}  dxc6 {[%clk 0:02:58]} 5. d3 {[%clk 0:03:00]}  Bg7 {[%clk 0:02:58]} 6. Nc3 {[%clk 0:03:00]}  e5 {[%clk 0:02:58]} 7. Be3 {[%clk 0:02:59]}  b6 {[%clk 0:02:58]} 8. h3 {[%clk 0:03:00]}  f6 {[%clk 0:02:58]} 9. Qc1 {[%clk 0:02:57]}  Be6 {[%clk 0:02:58]} 10. b3 {[%clk 0:02:52]}  Qd7 {[%clk 0:02:56]} 11. a4 {[%clk 0:02:50]}  Ne7 {[%clk 0:02:55]} 12. Bh6 {[%clk 0:02:49]}  O-O {[%clk 0:02:55]} 13. Bxg7 {[%clk 0:02:46]}  Kxg7 {[%clk 0:02:56]} 14. Qe3 {[%clk 0:02:38]}  a5 {[%clk 0:02:55]} 15. O-O {[%clk 0:02:37]}  g5 {[%clk 0:02:54]} 16. Ne2 {[%clk 0:02:28]}  Ng6 {[%clk 0:02:53]} 17. Nh2 {[%clk 0:02:21]}  Rg8 {[%clk 0:02:52]} 18. Ng3 {[%clk 0:02:17]}  Nf4 {[%clk 0:02:51]} 19. Qf3 {[%clk 0:02:12]}  Kh8 {[%clk 0:02:34]} 20. Ng4 {[%clk 0:02:09]}  Raf8 {[%clk 0:02:32]} 21. Ne3 {[%clk 0:02:06]}  g4 {[%clk 0:02:29]} 22. hxg4 {[%clk 0:02:04]}  Bxg4 {[%clk 0:02:29]} 23. Nxg4 {[%clk 0:02:04]}  Rxg4 {[%clk 0:02:29]} 24. Nf5 {[%clk 0:01:38]}  Rxg2+ {[%clk 0:02:26]} 25. Qxg2 {[%clk 0:01:15]}  Nxg2 {[%clk 0:02:25]} 26. Kxg2 {[%clk 0:01:16]}  Rg8+ {[%clk 0:02:25]} 27. Kf3 {[%clk 0:01:13]}  Qf7 {[%clk 0:02:21]} 28. Rh1 {[%clk 0:01:09]}  Qg6 {[%clk 0:02:20]} 29. Rh6 {[%clk 0:00:54]}  Qg4+ {[%clk 0:02:20]} 30. Ke3 {[%clk 0:00:54]}  Qf4+ {[%clk 0:02:21]} 31. Ke2 {[%clk 0:00:52]}  Rg6 {[%clk 0:02:18]} 32. Rh4 {[%clk 0:00:46]}  Rg4 {[%clk 0:02:17]} 33. Rh6 {[%clk 0:00:44]}  Rg2 {[%clk 0:02:14]} 34. Rf1 {[%clk 0:00:38]}  Qg4+ {[%clk 0:02:10]} 35. Ke3 {[%clk 0:00:34]}  Qg5+ {[%clk 0:02:09]} 36. Ke2 {[%clk 0:00:34]}  Qg4+ {[%clk 0:02:05]} 37. Ke3 {[%clk 0:00:30]}  Qf4+ {[%clk 0:01:53]} 38. Ke2 {[%clk 0:00:30]}  Rg6 {[%clk 0:01:53]} 39. Rh4 {[%clk 0:00:09]}  Rg4 {[%clk 0:01:42]} 40. Rh6 {[%clk 0:00:08]}  Rg2 {[%clk 0:01:31]} 41. Rh4 {[%clk 0:00:07]}  Qg5 {[%clk 0:01:31]} 42. Rfh1 {[%clk 0:00:06]}  Kg8 {[%clk 0:01:30]} 43. Rxh7 {[%clk 0:00:05]}  Qg4+ {[%clk 0:01:29]} 44. Kf1 {[%clk 0:00:04]}  Qd1+ {[%clk 0:00:10]} 45. Kxg2 {[%clk 0:00:04]}  Qg4+ {[%clk 0:00:10]} 46. Ng3 {[%clk 0:00:05]}  b5 {[%clk 0:00:11]} 47. Rh8+ {[%clk 0:00:06]}  Kf7 {[%clk 0:00:11]} 48. R1h7+ {[%clk 0:00:06]}  Ke6 {[%clk 0:00:11]} 49. Re8+ {[%clk 0:00:07]}  Kd6 {[%clk 0:00:11]} 50. Rd8+ {[%clk 0:00:06]}  Ke6 {[%clk 0:00:11]} 51. Rdd7 {[%clk 0:00:07]}  f5 {[%clk 0:00:10]} 52. Rh6+ {[%clk 0:00:06]}  Kxd7 {[%clk 0:00:10]} 53. exf5 {[%clk 0:00:06]}  c4 {[%clk 0:00:10]} 54. dxc4 {[%clk 0:00:05]}  bxa4 {[%clk 0:00:10]} 55. bxa4 {[%clk 0:00:05]}  Qxc4 {[%clk 0:00:10]} 56. f6 {[%clk 0:00:05]}  Qxa4 {[%clk 0:00:10]} 57. f3 {[%clk 0:00:02]}  Qf4 {[%clk 0:00:10]} 58. Rg6 {[%clk 0:00:01]}  Qd2+ {[%clk 0:00:10]} 59. Kh3 {[%clk 0:00:01]}  Qxc2 {[%clk 0:00:10]} 60. Kg4 {[%clk 0:00:00]}  Qxg6+ {[%clk 0:00:10]} 0-1

[Event "December 5 Early 2023"]
[Site "https://www.chess.com"]
[Date "2023.12.05"]
[Round "9"]
[White "Gruzman, Ilya"]
[Black "Iskusnyh, Sergei"]
[Result "0-1"]
[Board "76"]
[TimeControl "180+1"]
[WhiteFideId "2812703"]
[BlackFideId "4120027"]
[WhiteElo "2344"]
[BlackElo "2556"]
[WhiteTeam "ISR"]
[BlackTeam "RUS"]
[WhiteClock "0:00:09"]
[BlackClock "0:00:29"]

1. d4 {[%clk 0:03:00]}  d5 {[%clk 0:02:56]} 2. c4 {[%clk 0:02:59]}  c6 {[%clk 0:02:55]} 3. Nf3 {[%clk 0:02:58]}  Nf6 {[%clk 0:02:55]} 4. e3 {[%clk 0:02:58]}  a6 {[%clk 0:02:55]} 5. Nc3 {[%clk 0:02:57]}  e6 {[%clk 0:02:54]} 6. cxd5 {[%clk 0:02:54]}  exd5 {[%clk 0:02:50]} 7. Bd3 {[%clk 0:02:54]}  Bd6 {[%clk 0:02:44]} 8. O-O {[%clk 0:02:54]}  O-O {[%clk 0:02:43]} 9. Ne5 {[%clk 0:02:55]}  c5 {[%clk 0:02:37]} 10. f4 {[%clk 0:02:54]}  Nc6 {[%clk 0:02:37]} 11. h3 {[%clk 0:02:30]}  Qb6 {[%clk 0:02:26]} 12. dxc5 {[%clk 0:02:28]}  Bxc5 {[%clk 0:02:23]} 13. Nxc6 {[%clk 0:02:28]}  Bxe3+ {[%clk 0:02:20]} 14. Kh1 {[%clk 0:02:19]}  bxc6 {[%clk 0:02:20]} 15. Bxe3 {[%clk 0:02:17]}  Qxe3 {[%clk 0:02:19]} 16. Rc1 {[%clk 0:02:17]}  Bd7 {[%clk 0:01:56]} 17. Rf3 {[%clk 0:02:14]}  Qe7 {[%clk 0:01:46]} 18. Qd2 {[%clk 0:02:08]}  Rfe8 {[%clk 0:01:45]} 19. Rff1 {[%clk 0:02:03]}  a5 {[%clk 0:01:42]} 20. Rce1 {[%clk 0:02:02]}  Qb4 {[%clk 0:01:41]} 21. a3 {[%clk 0:01:54]}  Qb3 {[%clk 0:01:26]} 22. Bc2 {[%clk 0:01:53]}  Qb6 {[%clk 0:01:22]} 23. Bd3 {[%clk 0:01:47]}  g6 {[%clk 0:01:13]} 24. f5 {[%clk 0:01:45]}  Rxe1 {[%clk 0:01:12]} 25. Rxe1 {[%clk 0:01:46]}  Re8 {[%clk 0:01:09]} 26. Rxe8+ {[%clk 0:01:46]}  Bxe8 {[%clk 0:01:08]} 27. Bb1 {[%clk 0:01:37]}  Bd7 {[%clk 0:01:05]} 28. Qg5 {[%clk 0:01:30]}  Qd4 {[%clk 0:01:03]} 29. fxg6 {[%clk 0:01:27]}  hxg6 {[%clk 0:01:02]} 30. Qg3 {[%clk 0:01:08]}  Kg7 {[%clk 0:01:01]} 31. Qe1 {[%clk 0:01:03]}  Be6 {[%clk 0:00:56]} 32. Bc2 {[%clk 0:00:56]}  c5 {[%clk 0:00:56]} 33. Na4 {[%clk 0:00:55]}  Qf4 {[%clk 0:00:49]} 34. Nxc5 {[%clk 0:00:47]}  Bc8 {[%clk 0:00:40]} 35. b4 {[%clk 0:00:27]}  axb4 {[%clk 0:00:36]} 36. axb4 {[%clk 0:00:28]}  Nh5 {[%clk 0:00:33]} 37. Qa1+ {[%clk 0:00:24]}  Kh7 {[%clk 0:00:32]} 38. Nd3 {[%clk 0:00:18]}  Qd2 {[%clk 0:00:30]} 39. Qf1 {[%clk 0:00:09]}  Ng3+ {[%clk 0:00:29]} 0-1

[Event "December 5 Early 2023"]
[Site "https://www.chess.com"]
[Date "2023.12.05"]
[Round "9"]
[White "Galchenko, Matvey"]
[Black "Zivic, Dragan"]
[Result "1-0"]
[Board "77"]
[TimeControl "180+1"]
[WhiteFideId "24175480"]
[BlackFideId "904740"]
[WhiteElo "2914"]
[BlackElo "2360"]
[WhiteTeam "FID"]
[BlackTeam "SRB"]
[WhiteClock "0:00:37"]
[BlackClock "0:00:26"]

1. e4 {[%clk 0:03:00]}  c6 {[%clk 0:02:59]} 2. d4 {[%clk 0:02:59]}  d5 {[%clk 0:02:59]} 3. e5 {[%clk 0:02:59]}  Bf5 {[%clk 0:02:59]} 4. g4 {[%clk 0:02:59]}  Be4 {[%clk 0:02:58]} 5. f3 {[%clk 0:02:59]}  Bg6 {[%clk 0:02:58]} 6. e6 {[%clk 0:02:59]}  h5 {[%clk 0:02:55]} 7. h4 {[%clk 0:02:51]}  hxg4 {[%clk 0:02:54]} 8. Bd3 {[%clk 0:02:41]}  Bxd3 {[%clk 0:02:43]} 9. exf7+ {[%clk 0:02:41]}  Kxf7 {[%clk 0:02:40]} 10. Qxd3 {[%clk 0:02:41]}  Nf6 {[%clk 0:02:29]} 11. fxg4 {[%clk 0:02:35]}  Qd6 {[%clk 0:02:24]} 12. Nc3 {[%clk 0:02:21]}  e5 {[%clk 0:02:23]} 13. dxe5 {[%clk 0:02:21]}  Qxe5+ {[%clk 0:02:23]} 14. Nge2 {[%clk 0:02:22]}  Bd6 {[%clk 0:02:11]} 15. Bf4 {[%clk 0:02:15]}  Qe6 {[%clk 0:02:10]} 16. Bxd6 {[%clk 0:02:14]}  Qxd6 {[%clk 0:02:11]} 17. g5 {[%clk 0:02:14]}  Nh5 {[%clk 0:01:41]} 18. O-O-O {[%clk 0:01:57]}  Kg8 {[%clk 0:01:17]} 19. Qf5 {[%clk 0:01:37]}  Nd7 {[%clk 0:01:14]} 20. Nxd5 {[%clk 0:00:44]}  cxd5 {[%clk 0:00:48]} 21. Rxd5 {[%clk 0:00:43]}  Qe7 {[%clk 0:00:46]} 22. Rxd7 {[%clk 0:00:42]}  Qxe2 {[%clk 0:00:44]} 23. Qd5+ {[%clk 0:00:43]}  Kh7 {[%clk 0:00:39]} 24. g6+ {[%clk 0:00:43]}  Kxg6 {[%clk 0:00:35]} 25. Rg1+ {[%clk 0:00:43]}  Kh7 {[%clk 0:00:30]} 26. Qf5+ {[%clk 0:00:41]}  Kh6 {[%clk 0:00:26]} 27. Qg6# {[%clk 0:00:37]} 1-0

[Event "December 5 Early 2023"]
[Site "https://www.chess.com"]
[Date "2023.12.05"]
[Round "9"]
[White "Pakleza, Zbigniew"]
[Black "Tikhonov, Viacheslav"]
[Result "1-0"]
[Board "78"]
[TimeControl "180+1"]
[WhiteFideId "1119290"]
[BlackFideId "44196407"]
[WhiteElo "2684"]
[BlackElo "2502"]
[WhiteTeam "POL"]
[BlackTeam "RUS"]
[WhiteClock "0:00:19"]
[BlackClock "0:00:21"]

1. d4 {[%clk 0:03:00]}  Nf6 {[%clk 0:02:56]} 2. Nf3 {[%clk 0:03:00]}  g6 {[%clk 0:02:55]} 3. Bf4 {[%clk 0:03:00]}  Bg7 {[%clk 0:02:55]} 4. e3 {[%clk 0:03:01]}  c5 {[%clk 0:02:55]} 5. c3 {[%clk 0:03:00]}  b6 {[%clk 0:02:55]} 6. Bc4 {[%clk 0:02:59]}  Bb7 {[%clk 0:02:55]} 7. dxc5 {[%clk 0:02:58]}  O-O {[%clk 0:02:40]} 8. cxb6 {[%clk 0:02:58]}  Qxb6 {[%clk 0:02:40]} 9. Qb3 {[%clk 0:02:56]}  d5 {[%clk 0:02:38]} 10. Qxb6 {[%clk 0:02:53]}  axb6 {[%clk 0:02:39]} 11. Be2 {[%clk 0:02:51]}  Nc6 {[%clk 0:02:36]} 12. Nbd2 {[%clk 0:02:47]}  Ne4 {[%clk 0:02:28]} 13. Bc7 {[%clk 0:02:32]}  Na5 {[%clk 0:01:38]} 14. O-O {[%clk 0:01:56]}  Nc4 {[%clk 0:01:24]} 15. Nxc4 {[%clk 0:01:36]}  dxc4 {[%clk 0:01:25]} 16. Bxb6 {[%clk 0:01:37]}  Bd5 {[%clk 0:01:19]} 17. Rfd1 {[%clk 0:01:27]}  e6 {[%clk 0:01:19]} 18. Bd4 {[%clk 0:01:27]}  f6 {[%clk 0:01:04]} 19. Nd2 {[%clk 0:01:16]}  Nxd2 {[%clk 0:00:56]} 20. Rxd2 {[%clk 0:01:16]}  Ra4 {[%clk 0:00:40]} 21. Bc5 {[%clk 0:01:05]}  Rfa8 {[%clk 0:00:34]} 22. a3 {[%clk 0:01:02]}  Bf8 {[%clk 0:00:27]} 23. Bxf8 {[%clk 0:01:01]}  Kxf8 {[%clk 0:00:27]} 24. f3 {[%clk 0:00:56]}  f5 {[%clk 0:00:28]} 25. Kf2 {[%clk 0:00:52]}  Rb8 {[%clk 0:00:27]} 26. h4 {[%clk 0:00:49]}  Ke7 {[%clk 0:00:23]} 27. g4 {[%clk 0:00:38]}  Rf8 {[%clk 0:00:15]} 28. Kg3 {[%clk 0:00:37]}  f4+ {[%clk 0:00:12]} 29. exf4 {[%clk 0:00:35]}  Ra7 {[%clk 0:00:11]} 30. Rd4 {[%clk 0:00:30]}  Rc7 {[%clk 0:00:09]} 31. Re1 {[%clk 0:00:26]}  Rb8 {[%clk 0:00:09]} 32. Bd1 {[%clk 0:00:24]}  Kd6 {[%clk 0:00:07]} 33. Re2 {[%clk 0:00:23]}  Rcb7 {[%clk 0:00:06]} 34. Rdd2 {[%clk 0:00:22]}  Rb6 {[%clk 0:00:03]} 35. f5 {[%clk 0:00:18]}  gxf5 {[%clk 0:00:03]} 36. gxf5 {[%clk 0:00:18]}  exf5 {[%clk 0:00:03]} 37. Kf4 {[%clk 0:00:19]}  Rf8 {[%clk 0:00:02]} 38. Re5 {[%clk 0:00:18]}  Rb5 {[%clk 0:00:03]} 39. Be2 {[%clk 0:00:16]}  Rc5 {[%clk 0:00:03]} 40. Rd4 {[%clk 0:00:13]}  Kc6 {[%clk 0:00:03]} 41. Bd1 {[%clk 0:00:12]}  Kd6 {[%clk 0:00:03]} 42. Bc2 {[%clk 0:00:11]}  Kc6 {[%clk 0:00:02]} 43. a4 {[%clk 0:00:11]}  Bg8 {[%clk 0:00:01]} 44. Rxc5+ {[%clk 0:00:08]}  Kxc5 {[%clk 0:00:02]} 45. Rd2 {[%clk 0:00:05]}  Rb8 {[%clk 0:00:02]} 46. Bxf5 {[%clk 0:00:05]}  h6 {[%clk 0:00:03]} 47. Re2 {[%clk 0:00:05]}  Bf7 {[%clk 0:00:03]} 48. Re7 {[%clk 0:00:05]}  Bh5 {[%clk 0:00:03]} 49. Re5+ {[%clk 0:00:05]}  Kd6 {[%clk 0:00:02]} 50. Rb5 {[%clk 0:00:06]}  Ra8 {[%clk 0:00:02]} 51. Rb4 {[%clk 0:00:06]}  Bf7 {[%clk 0:00:02]} 52. Be4 {[%clk 0:00:06]}  Ra7 {[%clk 0:00:02]} 53. Ke3 {[%clk 0:00:06]}  Kc5 {[%clk 0:00:02]} 54. Rb5+ {[%clk 0:00:06]}  Kd6 {[%clk 0:00:03]} 55. a5 {[%clk 0:00:07]}  Kc7 {[%clk 0:00:02]} 56. a6 {[%clk 0:00:07]}  Be6 {[%clk 0:00:02]} 57. Rb7+ {[%clk 0:00:07]}  Rxb7 {[%clk 0:00:02]} 58. axb7 {[%clk 0:00:08]}  Bh3 {[%clk 0:00:01]} 59. f4 {[%clk 0:00:07]}  Bg4 {[%clk 0:00:01]} 60. Kd4 {[%clk 0:00:08]}  Be6 {[%clk 0:00:01]} 61. Ke5 {[%clk 0:00:08]}  Bf7 {[%clk 0:00:02]} 62. Kf6 {[%clk 0:00:09]}  Bh5 {[%clk 0:00:02]} 63. Kg7 {[%clk 0:00:09]}  Bg4 {[%clk 0:00:02]} 64. Kxh6 {[%clk 0:00:09]}  Be6 {[%clk 0:00:02]} 65. Kg5 {[%clk 0:00:10]}  Bd7 {[%clk 0:00:02]} 66. h5 {[%clk 0:00:10]}  Be6 {[%clk 0:00:02]} 67. h6 {[%clk 0:00:11]}  Bg8 {[%clk 0:00:03]} 68. Kf6 {[%clk 0:00:11]}  Kb8 {[%clk 0:00:03]} 69. Kg7 {[%clk 0:00:11]}  Bh7 {[%clk 0:00:03]} 70. Kxh7 {[%clk 0:00:11]}  Ka7 {[%clk 0:00:04]} 71. Kg6 {[%clk 0:00:12]}  Kb6 {[%clk 0:00:05]} 72. Kf5 {[%clk 0:00:12]}  Ka5 {[%clk 0:00:06]} 73. Ke5 {[%clk 0:00:13]}  Ka4 {[%clk 0:00:07]} 74. Kd4 {[%clk 0:00:13]}  Kb3 {[%clk 0:00:08]} 75. h7 {[%clk 0:00:13]}  Ka2 {[%clk 0:00:09]} 76. f5 {[%clk 0:00:14]}  Kxb2 {[%clk 0:00:09]} 77. f6 {[%clk 0:00:14]}  Kc1 {[%clk 0:00:10]} 78. Kxc4 {[%clk 0:00:15]}  Kd2 {[%clk 0:00:11]} 79. Kd4 {[%clk 0:00:15]}  Kc1 {[%clk 0:00:11]} 80. c4 {[%clk 0:00:16]}  Kd2 {[%clk 0:00:12]} 81. c5 {[%clk 0:00:17]}  Kc1 {[%clk 0:00:12]} 82. c6 {[%clk 0:00:18]}  Kd2 {[%clk 0:00:13]} 83. Ke5 {[%clk 0:00:19]}  Kc1 {[%clk 0:00:14]} 84. Bd5 {[%clk 0:00:20]}  Kd2 {[%clk 0:00:15]} 85. f7 {[%clk 0:00:20]}  Kc1 {[%clk 0:00:16]} 86. c7 {[%clk 0:00:21]}  Kd2 {[%clk 0:00:17]} 87. f8=Q {[%clk 0:00:21]}  Kd3 {[%clk 0:00:18]} 88. h8=Q {[%clk 0:00:21]}  Ke2 {[%clk 0:00:19]} 89. c8=Q {[%clk 0:00:21]}  Kd3 {[%clk 0:00:20]} 90. b8=Q {[%clk 0:00:21]}  Ke2 {[%clk 0:00:21]} 91. Qb2+ {[%clk 0:00:21]}  Kd3 {[%clk 0:00:21]} 92. Be4+ {[%clk 0:00:20]}  Ke3 {[%clk 0:00:21]} 93. Qcc3# {[%clk 0:00:19]} 1-0

[Event "December 5 Early 2023"]
[Site "https://www.chess.com"]
[Date "2023.12.05"]
[Round "9"]
[White "Skliarov, Viktor"]
[Black "Sreyas Payyappat"]
[Result "1/2-1/2"]
[Board "81"]
[TimeControl "180+1"]
[WhiteFideId "14106736"]
[BlackFideId "46674969"]
[WhiteElo "2614"]
[BlackElo "2496"]
[WhiteTeam "UKR"]
[BlackTeam "IND"]
[WhiteClock "0:00:07"]
[BlackClock "0:00:13"]

1. e4 {[%clk 0:03:00]}  c6 {[%clk 0:02:59]} 2. Nc3 {[%clk 0:03:00]}  d5 {[%clk 0:03:00]} 3. Nf3 {[%clk 0:03:01]}  dxe4 {[%clk 0:02:59]} 4. Nxe4 {[%clk 0:03:01]}  Nf6 {[%clk 0:03:00]} 5. Nxf6+ {[%clk 0:02:59]}  exf6 {[%clk 0:03:01]} 6. d4 {[%clk 0:02:59]}  Bd6 {[%clk 0:03:02]} 7. Bd3 {[%clk 0:02:59]}  O-O {[%clk 0:03:02]} 8. O-O {[%clk 0:03:00]}  Re8 {[%clk 0:03:03]} 9. h3 {[%clk 0:02:58]}  Nd7 {[%clk 0:03:04]} 10. c3 {[%clk 0:02:57]}  Nf8 {[%clk 0:03:05]} 11. Re1 {[%clk 0:02:56]}  Be6 {[%clk 0:03:04]} 12. Be3 {[%clk 0:02:54]}  Bc7 {[%clk 0:03:01]} 13. Qd2 {[%clk 0:02:45]}  Bd5 {[%clk 0:02:56]} 14. Be2 {[%clk 0:02:31]}  Qd6 {[%clk 0:02:55]} 15. c4 {[%clk 0:01:53]}  Bxf3 {[%clk 0:02:51]} 16. Bxf3 {[%clk 0:01:52]}  Qh2+ {[%clk 0:02:47]} 17. Kf1 {[%clk 0:01:52]}  Ng6 {[%clk 0:02:48]} 18. g3 {[%clk 0:01:24]}  Qxh3+ {[%clk 0:02:43]} 19. Bg2 {[%clk 0:01:25]}  Qg4 {[%clk 0:02:40]} 20. Qd1 {[%clk 0:01:21]}  Qe6 {[%clk 0:02:37]} 21. d5 {[%clk 0:01:13]}  cxd5 {[%clk 0:02:35]} 22. Qxd5 {[%clk 0:01:13]}  Qg4 {[%clk 0:02:28]} 23. Qxb7 {[%clk 0:01:08]}  Qxc4+ {[%clk 0:02:17]} 24. Kg1 {[%clk 0:01:07]}  Rab8 {[%clk 0:02:09]} 25. Rac1 {[%clk 0:00:38]}  Qxc1 {[%clk 0:02:03]} 26. Rxc1 {[%clk 0:00:37]}  Rxb7 {[%clk 0:02:02]} 27. Bxb7 {[%clk 0:00:38]}  Bxg3 {[%clk 0:01:59]} 28. Bxa7 {[%clk 0:00:36]}  Bf4 {[%clk 0:01:51]} 29. Rc8 {[%clk 0:00:35]}  Rxc8 {[%clk 0:01:49]} 30. Bxc8 {[%clk 0:00:36]}  Kf8 {[%clk 0:01:43]} 31. a4 {[%clk 0:00:29]}  Ke7 {[%clk 0:01:41]} 32. Bb6 {[%clk 0:00:24]}  Ne5 {[%clk 0:01:32]} 33. b3 {[%clk 0:00:20]}  Nd7 {[%clk 0:01:18]} 34. Bd4 {[%clk 0:00:19]}  Bd2 {[%clk 0:01:15]} 35. Bb7 {[%clk 0:00:16]}  h5 {[%clk 0:01:12]} 36. Bf3 {[%clk 0:00:14]}  h4 {[%clk 0:01:11]} 37. Kf1 {[%clk 0:00:14]}  f5 {[%clk 0:01:10]} 38. Ke2 {[%clk 0:00:14]}  Bb4 {[%clk 0:01:09]} 39. Bxg7 {[%clk 0:00:14]}  h3 {[%clk 0:01:03]} 40. Bd4 {[%clk 0:00:13]}  Ke6 {[%clk 0:00:47]} 41. Bc6 {[%clk 0:00:12]}  Kd6 {[%clk 0:00:37]} 42. Bb7 {[%clk 0:00:12]}  Ne5 {[%clk 0:00:34]} 43. f4 {[%clk 0:00:11]}  Ng6 {[%clk 0:00:28]} 44. Kf3 {[%clk 0:00:08]}  Bd2 {[%clk 0:00:19]} 45. Kg3 {[%clk 0:00:08]}  Nxf4 {[%clk 0:00:19]} 46. Bg1 {[%clk 0:00:04]}  Ke5 {[%clk 0:00:19]} 47. a5 {[%clk 0:00:04]}  Be1+ {[%clk 0:00:18]} 48. Kf3 {[%clk 0:00:04]}  Bxa5 {[%clk 0:00:14]} 49. Bh2 {[%clk 0:00:05]}  Bd2 {[%clk 0:00:15]} 50. b4 {[%clk 0:00:05]}  Kd4 {[%clk 0:00:09]} 51. Bxf4 {[%clk 0:00:05]}  Bxf4 {[%clk 0:00:10]} 52. Kxf4 {[%clk 0:00:05]}  Kc4 {[%clk 0:00:10]} 53. Kxf5 {[%clk 0:00:06]}  Kxb4 {[%clk 0:00:11]} 54. Kg4 {[%clk 0:00:06]}  Kc4 {[%clk 0:00:11]} 55. Kxh3 {[%clk 0:00:06]}  f5 {[%clk 0:00:12]} 56. Kg3 {[%clk 0:00:07]}  f4+ {[%clk 0:00:13]} 57. Kxf4 {[%clk 0:00:07]} 1/2-1/2

[Event "December 5 Early 2023"]
[Site "https://www.chess.com"]
[Date "2023.12.05"]
[Round "9"]
[White "Herman, Matthew"]
[Black "Espinoza Villanueva, Rodrigo"]
[Result "0-1"]
[Board "82"]
[TimeControl "180+1"]
[WhiteFideId "2028964"]
[BlackFideId "5140188"]
[WhiteElo "2494"]
[BlackElo "2596"]
[WhiteTeam "USA"]
[BlackTeam "MEX"]
[WhiteClock "0:00:23"]
[BlackClock "0:01:23"]

1. e4 {[%clk 0:02:52]}  e5 {[%clk 0:02:59]} 2. Nf3 {[%clk 0:02:52]}  Nc6 {[%clk 0:02:59]} 3. Bc4 {[%clk 0:02:49]}  Bc5 {[%clk 0:02:58]} 4. d3 {[%clk 0:02:50]}  Nf6 {[%clk 0:02:57]} 5. c3 {[%clk 0:02:50]}  d6 {[%clk 0:02:55]} 6. a4 {[%clk 0:02:50]}  a6 {[%clk 0:02:55]} 7. Bg5 {[%clk 0:02:50]}  h6 {[%clk 0:02:54]} 8. Bh4 {[%clk 0:02:50]}  g5 {[%clk 0:02:51]} 9. Bg3 {[%clk 0:02:50]}  O-O {[%clk 0:02:46]} 10. Nbd2 {[%clk 0:02:46]}  Ba7 {[%clk 0:02:46]} 11. a5 {[%clk 0:02:27]}  Qe7 {[%clk 0:02:44]} 12. Qb3 {[%clk 0:02:22]}  Nh5 {[%clk 0:02:40]} 13. Kd1 {[%clk 0:02:13]}  Nd8 {[%clk 0:02:29]} 14. Kc2 {[%clk 0:02:11]}  Ne6 {[%clk 0:02:26]} 15. Rad1 {[%clk 0:01:58]}  Bd7 {[%clk 0:02:24]} 16. Qa2 {[%clk 0:01:58]}  c6 {[%clk 0:02:11]} 17. h4 {[%clk 0:01:47]}  g4 {[%clk 0:01:59]} 18. Nh2 {[%clk 0:01:47]}  Nef4 {[%clk 0:01:57]} 19. Bxf4 {[%clk 0:01:36]}  Nxf4 {[%clk 0:01:57]} 20. g3 {[%clk 0:01:32]}  Nh3 {[%clk 0:01:56]} 21. f3 {[%clk 0:01:21]}  Nf2 {[%clk 0:01:56]} 22. fxg4 {[%clk 0:01:09]}  Nxd1 {[%clk 0:01:54]} 23. Rxd1 {[%clk 0:01:09]}  Qf6 {[%clk 0:01:43]} 24. Ndf3 {[%clk 0:00:34]}  Qg7 {[%clk 0:01:30]} 25. g5 {[%clk 0:00:24]}  Bf2 {[%clk 0:01:26]} 26. Ng4 {[%clk 0:00:23]}  Bxg4 {[%clk 0:01:23]} 0-1